Cogmind - Beta 11.1 @@@ ROGUE MODE // 2022.05.04 @ 12:31:11 Player: Demise Result: Destroyed by G-73 Enforcer with Phase Gun Performance ------------- Evolutions (8) 4000 Regions Visited (25) 5000 Robots Destroyed (241) 1205 Value Destroyed (9802) 9802 Prototype IDs (54) 1080 Alien Tech Used (0) 0 Bonus (5689) 5689 TOTAL SCORE: 26776 Bonus ------- Triggered Max Security 1000 High Alert Combat Kills 986 Follower Combat Kills 363 Entered Garrisons 1200 Used RIF Installer 2000 Aligned with FarCom 300 Friendly Fire -160 Cogmind --------- Core Integrity 0/1450 Matter 229/300 Energy 100/100 System Corruption 0% Temperature Cool (18) Movement Core (400) Ox7 Location -2/Testing Parts ------- > --- POWER (2) -------- (None) > --- PROPULSION (6) --- (None) > --- UTILITY (13) ----- Advanced Visual Processing Unit Centrium Heavy Armor Plating Graphene Brace Advanced Corruption Screen > --- WEAPON (2) ------- (None) > --- INVENTORY (5) ---- Quantum Reactor Trap Reconfigurator Compact Linear Accelerator Peak State ------------ > --- POWER ------------ Light Fission Core Improved Fusion Compressor > --- PROPULSION ------- Combat Airjet Combat Airjet Combat Airjet Combat Airjet > --- UTILITY ---------- Improved Coolant Injector Machine Analyzer Precision Energy Filter Improved Light Armor Plating Improved Light Armor Plating Improved Hacking Suite Relay Coupler [NC] Long-range Tractor Beam Drone Bay > --- WEAPON ----------- Mini Smartbomb Launcher Lance > --- INVENTORY -------- Trap Reconfigurator Advanced Plasma Cannon Improved KE Penetrator Improved KE Penetrator Improved Datajack [Rating: 84] Favorites ----------- Power Micro Nuclear Core Engine Heavy Ion Engine Power Core Micro Nuclear Core Reactor Light Antimatter Reactor Propulsion VSS Leg Treads Light Treads Leg VSS Leg Wheel Wheel Hover Unit Combat Airjet Flight Unit VTOL Module Utility Machine Analyzer Device Improved Heat Sink Storage High-capacity Storage Unit Processor Machine Analyzer Hackware System Shield Protection Hardened Light Armor Plating Weapon Heavy Assault Rifle Energy Gun Variable Charge Gun Energy Cannon Advanced Plasma Cannon Ballistic Gun Heavy Assault Rifle Ballistic Cannon Compact Linear Accelerator Launcher Mini Smartbomb Launcher Special Weapon Remote Datajack Impact Weapon Impact Mace Slashing Weapon Chainsword Piercing Weapon Lance Special Melee Weapon Datajack Build | -11 -10 -10 -9 -9 -9 -8 -8 -7 -7 -7 -7 -6 -6 -6 -6 -5 -5 -4 -4 -4 -3 -3 -2 -2 -2 ------- Run | Scr Mat Min Mat Min Exi Min Mat Fac Was Fac Gar Fac Gar Fac Gar Fac Gar Fac Upp Upp Res Gar Res Gar Tes Slots Evolved 16 | . . . 2 . . . 2 2 . . . 2 . . . 2 . 2 . . 2 . 2 . . Power 1 | . . . . . . . . . . . . 1 . . . . . . . . . . . . . Propulsion 4 | . . . . . . . . . . . . 1 . . . 1 . . . . . . 2 . . Utility 11 | . . . 2 . . . 2 2 . . . . . . . 1 . 2 . . 2 . . . . Weapon . | . . . . . . . . . . . . . . . . . . . . . . . . . . Parts Attached 345 | 5 11 6 42 . 4 6 29 11 16 20 24 51 15 4 6 14 32 13 16 1 8 . 6 1 4 Power 38 | . 3 1 2 . . . 4 2 . 3 . 5 3 2 . 1 6 2 1 . 2 . 1 . . Engine 11 | . 2 1 2 . . . . 1 . 1 . . . 1 . . 2 1 . . . . . . . Core 24 | . 1 . . . . . 4 1 . 2 . 5 3 1 . 1 4 . 1 . 1 . . . . Reactor 3 | . . . . . . . . . . . . . . . . . . 1 . . 1 . 1 . . Propulsion 60 | 2 3 1 10 . . 2 4 . 3 . 2 7 4 . . 2 9 2 4 . 2 . 1 1 1 Treads 23 | 1 1 1 7 . . . 1 . 3 . 1 5 . . . . . 2 1 . . . . . . Leg 12 | . . . 3 . . 2 2 . . . . . . . . . 2 . 3 . . . . . . Wheel 5 | 1 2 . . . . . 1 . . . . . . . . . . . . . . . . . 1 Hover 8 | . . . . . . . . . . . . . 3 . . 2 2 . . . 1 . . . . Flight 12 | . . . . . . . . . . . 1 2 1 . . . 5 . . . 1 . 1 1 . Utility 136 | 1 4 1 17 . 1 3 11 9 8 6 13 20 5 2 3 7 10 7 3 1 1 . 1 . 2 Device 44 | 1 1 . 3 . . . 3 2 3 3 3 8 1 2 1 5 3 1 2 1 . . 1 . . Storage 5 | . 1 . 1 . 1 . . . . . . . . . . . . 1 . . 1 . . . . Processor 13 | . . . 1 . . . 1 3 . . . 1 . . . . 2 4 . . . . . . 1 Hackware 21 | . . . . . . . . 1 . . 6 5 3 . . . 5 1 . . . . . . . Protection 53 | . 2 1 12 . . 3 7 3 5 3 4 6 1 . 2 2 . . 1 . . . . . 1 Artifact . | . . . . . . . . . . . . . . . . . . . . . . . . . . Weapon 111 | 2 1 3 13 . 3 1 10 . 5 11 9 19 3 . 3 4 7 2 8 . 3 . 3 . 1 Energy Gun 5 | . . . . . . . . . . . . . . . 1 . 1 . 1 . 1 . 1 . . Energy Cannon 5 | . . . . . . . . . . . . . 1 . . 1 1 2 . . . . . . . Ballistic Gun 62 | 2 1 3 10 . 2 1 10 . 2 5 4 8 . . . 1 5 . 5 . 2 . 1 . . Ballistic Cannon 2 | . . . . . . . . . 1 . . . . . . . . . . . . . 1 . . Launcher 10 | . . . . . . . . . 1 3 2 1 1 . 1 1 . . . . . . . . . Special Weapon 6 | . . . . . . . . . . . 2 3 . . . . . . . . . . . . 1 Impact Weapon 2 | . . . . . . . . . . . . . . . 1 . . . 1 . . . . . . Slashing Weapon 11 | . . . . . . . . . 1 3 1 5 . . . . . . 1 . . . . . . Piercing Weapon 4 | . . . . . . . . . . . . 2 1 . . 1 . . . . . . . . . Special Melee Weapon 4 | . . . 3 . 1 . . . . . . . . . . . . . . . . . . . . Unidentified Prototypes 12 | . . . . . . . 2 . 2 1 . 1 . . 1 2 . . . . . . 1 1 1 Corrupted Parts 1 | . . . . . . . . . . . . . . . . . . . . . 1 . . . . System Corruption 1 | . . . . . . . . . . . . . . . . . . . . . 1 . . . . Parts Lost 103 | . 2 . 8 . . 4 11 1 . . . 16 1 . . 14 7 5 18 1 7 . . 5 3 Power 16 | . . . 1 . . . 2 . . . . 2 . . . 2 3 1 3 . 2 . . . . Propulsion 26 | . 1 . 3 . . 1 3 . . . . 3 . . . 4 1 1 2 . 3 . . 3 1 Utility 33 | . 1 . 1 . . 2 2 1 . . . 5 1 . . 6 1 2 7 1 1 . . 1 1 Weapon 28 | . . . 3 . . 1 4 . . . . 6 . . . 2 2 1 6 . 1 . . 1 1 Highest Loss Streak 14 | . 1 . 2 . . 4 4 1 . . . 14 1 . . 9 2 3 13 1 7 . . 5 1 To Critical Strikes 2 | . . . . . . . . . . . . . . . . . . . 2 . . . . . . Average Slot Usage (%) 86 | . 96 100 94 100 100 99 96 98 89 92 91 90 57 100 100 84 60 74 69 64 54 19 28 33 20 Engine 3 | . 6 14 9 11 11 11 . . . . . . . 3 6 1 3 . 2 . . . . . . Core 4 | . 5 . . . . . 6 6 7 7 7 12 . 9 6 7 2 2 1 . 3 . . . . Treads 6 | . 14 14 13 . . . 2 7 9 7 6 11 . . . . . 4 3 5 1 . . . . Leg 4 | . . . 3 22 22 22 12 . . . . . . . . . 2 . 5 15 10 . . . . Wheel 2 | . 13 14 2 . . . 2 7 . . . . . . . . . . . . . . . . 3 Hover 1 | . . . . . . . . . . . . . 1 20 20 20 2 1 . . 1 . . . . Device 4 | . 6 . . 11 11 . 7 1 4 5 5 5 3 11 13 14 2 6 4 10 6 . 3 4 4 Storage 6 | . 6 14 11 11 11 11 9 7 7 7 7 5 . . . . . 3 5 5 3 . . . . Processor 13 | . . . 10 11 11 11 17 23 24 23 21 13 13 13 13 5 1 17 18 15 14 9 8 8 9 Hackware 8 | . . . . . . . . 4 7 7 12 19 26 21 20 11 25 27 16 6 4 4 4 3 . Protection 12 | . 12 14 21 11 11 22 19 22 15 16 12 7 . 6 5 8 . . . . . . . . 2 Ballistic Gun 12 | . 28 28 21 22 18 21 18 15 6 9 9 5 . . . 2 6 . 4 . . . 1 . . Naked Turns . | . . . . . . . . . . . . . . . . . . . . . . . . . . Heaviest Build 80 | 3 16 21 34 30 60 63 71 66 78 68 66 76 21 33 35 44 27 80 80 49 68 . 12 12 27 Greatest Support 100 | 16 20 20 40 24 24 24 24 10 70 70 70 100 36 36 36 48 30 98 98 65 65 15 22 22 16 Greatest Overweight (x) 19 | . 1 1 2 1 2 2 6 6 5 . 19 1 3 . . 1 3 1 1 . 6 . 3 2 1 Average Overweight (x) . | . . . . 1 1 2 3 5 . . . . . . . . . . . . . . . . . Largest Inventory Capacity 20 | 5 8 8 10 10 20 20 20 20 20 20 20 20 5 5 5 5 5 20 20 20 20 5 5 5 5 Average Capacity 14 | 5 6 8 9 10 14 20 20 20 20 20 20 19 5 5 5 5 5 15 20 20 16 5 5 5 5 Most Carried 20 | 4 8 8 10 10 15 15 20 20 20 20 20 20 5 5 5 5 5 14 20 16 18 4 5 5 5 Average Carried 13 | 3 6 8 9 10 10 12 19 19 19 19 18 19 3 4 4 4 4 8 15 16 14 4 4 4 3 Final Capacity 20 | 5 8 8 10 10 20 20 20 20 20 20 20 5 5 5 5 5 5 20 20 20 5 5 5 5 5 Final Carried 20 | 4 8 8 10 10 15 14 20 20 20 20 20 5 4 5 5 5 5 14 17 16 4 4 5 5 3 Class Distribution -------------------- 40% | Scavenger-Mutant 27% | Mutant 18% | Bothacker-Mutant 9% | Trapper-Mutant Dominant Class ---------------- Mutant | -10/Materials Scavenger-Mutant | -10/Mines Scavenger-Mutant | -9/Materials Scavenger-Mutant | -9/Mines Mutant | -9/Exiles Trapper-Mutant | -8/Mines Trapper-Mutant | -8/Materials Scavenger-Mutant | -7/Factory Scavenger-Mutant | -7/Waste Mutant | -7/Factory Bothacker-Mutant | -7/Garrison Bothacker-Mutant | -6/Factory Hacker-Mutant | -6/Garrison Scavenger-Mutant | -6/Factory Scavenger-Mutant | -6/Garrison Scavenger-Mutant | -5/Factory Bothacker-Mutant | -5/Garrison Bothacker-Mutant | -4/Factory Scavenger-Mutant | -4/Upper Caves Scavenger-Mutant | -4/Upper Caves Scavenger-Mutant | -3/Research Mutant | -3/Garrison Mutant | -2/Research Mutant | -2/Garrison Mutant | -2/Testing Resources | -11 -10 -10 -9 -9 -9 -8 -8 -7 -7 -7 -7 -6 -6 -6 -6 -5 -5 -4 -4 -4 -3 -3 -2 -2 -2 ----------- Run | Scr Mat Min Mat Min Exi Min Mat Fac Was Fac Gar Fac Gar Fac Gar Fac Gar Fac Upp Upp Res Gar Res Gar Tes Matter Collected 8124 | 244 304 90 1576 . 45 176 883 233 259 324 419 777 486 30 695 229 621 114 295 . 117 . 24 . 183 Remotely 616 | . . . . . . . . . . . . . 123 30 234 229 . . . . . . . . . Salvage Created 9711 | 42 489 39 2664 . . 166 1531 275 267 421 377 463 262 11 562 662 610 403 398 . 45 . 24 . . Parts 494 | 5 24 4 155 . . 6 81 22 . 29 14 20 17 1 24 33 30 12 10 . 1 . 6 . . Haulers Intercepted 13 | . 2 . 4 . . . 4 . . . . 1 . . . 2 . . . . . . . . . Recyclers Shooed 4 | . . . 2 . . . . . . . . . . . . 1 . . . . 1 . . . . Parts Field Recycled . | . . . . . . . . . . . . . . . . . . . . . . . . . . Retrieved Matter . | . . . . . . . . . . . . . . . . . . . . . . . . . . Parts Self-Destructed 13 | . . . . . . . . . . . . . . . . . . . 13 . . . . . . Prevented . | . . . . . . . . . . . . . . . . . . . . . . . . . . Kills | -11 -10 -10 -9 -9 -9 -8 -8 -7 -7 -7 -7 -6 -6 -6 -6 -5 -5 -4 -4 -4 -3 -3 -2 -2 -2 ------- Run | Scr Mat Min Mat Min Exi Min Mat Fac Was Fac Gar Fac Gar Fac Gar Fac Gar Fac Upp Upp Res Gar Res Gar Tes Combat Hostiles Destroyed 188 | . 8 3 48 . . 3 31 6 . 7 11 6 7 . 19 13 13 3 10 . . . . . . Melee 8 | . . . . . . . . . . . . 2 . . . 4 . . 2 . . . . . . Guns 131 | . 8 3 48 . . 3 30 6 . 7 3 3 . . . . 12 . 8 . . . . . . Cannons 2 | . . . . . . . . . . . . . . . . . . 2 . . . . . . . AOE 44 | . . . . . . . 1 . . . 8 1 7 . 18 9 . . . . . . . . . Classes Destroyed 17 | 1 4 1 6 . . . . 1 . . 2 1 . . 1 . . . . . . . . . . Worker 11 | . 2 . 5 . . . 2 . . . . . . 1 . 1 . . . . . . . . . Builder 4 | . . . 1 . . . . . . . . 1 . . . 1 . . . . . . 1 . . Tunneler 4 | 2 . . 1 . . . . . . . . . . . . 1 . . . . . . . . . Hauler 13 | . 2 . 4 . . . 4 . . . . 1 . . . 2 . . . . . . . . . Recycler 4 | . . . 2 . . . . . . . . . . . . 1 . 1 . . . . . . . Mechanic 2 | . . . 2 . . . . . . . . . . . . . . . . . . . . . . Operator 4 | . . . 2 . . . . 1 . . . 1 . . . . . . . . . . . . . Watcher 14 | . 1 . 5 . . . 2 1 . 3 . . . . . . . 1 . . 1 . . . . Swarmer 50 | . . 3 7 . . . 10 3 . . . . 5 . 6 5 5 . 6 . . . . . . Cutter 5 | . . . . . . . . . . . 1 . . . . 4 . . . . . . . . . Grunt 91 | . 8 . 29 . . 3 15 1 . 4 9 3 . . 10 3 4 . 2 . . . . . . Brawler 2 | . . . 2 . . . . . . . . . . . . . . . . . . . . . . Duelist 2 | . . . . . . . . . . . . 1 . . . . . . 1 . . . . . . Sentry 23 | . . . 10 . . . 6 . . 2 . 1 1 . 1 . . 1 1 . . . . . . Specialist 2 | . . . . . . . . . . . . . . . 2 . . . . . . . . . . Hunter 5 | . . . . . . . . . . . 1 . 1 . . 1 . 2 . . . . . . . Programmer 9 | . . . . . . . . 2 . 1 . 2 . . . . 4 . . . . . . . . Best Kill Streak 9 | 1 2 3 8 . . 3 6 3 . 3 6 1 5 1 4 9 4 2 5 . 1 . 1 . . Combat Bots Only 8 | . 2 3 5 . . 3 6 3 . 3 6 1 5 . 4 8 4 2 5 . . . . . . Max Kills in Single Turn 7 | 1 1 1 2 . . 1 2 1 . 2 2 1 2 1 3 7 1 1 1 . 1 . 1 . . Gunslinging 1 | . . . . . . . 1 . . . . . . . . . . . . . . . . . . Exploded 5 | . . . . . . . 1 . . . 2 1 2 . 3 5 . . . . . . . . . Melee 1 | . . . . . . . . . . . . 1 . . . 1 . . 1 . . . . . . Uniques/NPCs Destroyed . | . . . . . . . . . . . . . . . . . . . . . . . . . . Combat | -11 -10 -10 -9 -9 -9 -8 -8 -7 -7 -7 -7 -6 -6 -6 -6 -5 -5 -4 -4 -4 -3 -3 -2 -2 -2 -------- Run | Scr Mat Min Mat Min Exi Min Mat Fac Was Fac Gar Fac Gar Fac Gar Fac Gar Fac Upp Upp Res Gar Res Gar Tes Damage Taken 19873 | . 407 140 2370 43 . 745 1664 249 . 243 177 3204 57 . 270 1744 1019 575 2339 77 1066 126 317 1122 1919 Core 4696 | . 86 31 290 . . 95 191 37 . 25 26 600 33 . 74 464 222 120 375 11 438 126 133 721 598 Absorbed by Shields 650 | . . . . . . . . . . 100 44 289 . . . . . . 66 . . . . 151 . Reduced by Siege Mode 292 | . . . . . . . . . . . . 144 . . . . . 23 125 . . . . . . Redirected to Shielding 102 | . 9 . 44 . . . 23 8 . . . . . . . . . . 18 . . . . . . Regen/Repaired (Parts) 630 | . 2 . 37 . . . . . . . . 567 . . . 24 . . . . . . . . . Core Remaining (%) 51 | 100 . 53 . . . 3 65 . . . 87 . . . 16 . 31 . . 56 . 56 . . . Volleys Fired 711 | 13 66 7 186 . . 13 122 25 7 24 43 28 13 . 25 4 52 18 31 . 6 . 11 17 . Largest 2 | 2 2 2 2 . . 2 2 2 1 2 2 2 1 . 1 1 2 2 2 . 2 . 1 1 . Hottest 225 | 40 40 46 46 . . 46 46 46 75 80 80 80 98 . 80 98 98 196 123 . 111 . 225 225 . Shots Fired 1237 | 26 132 14 355 . . 26 242 50 7 43 53 46 13 . 25 4 88 26 51 . 8 . 11 17 . Gun 1124 | 26 132 14 355 . . 26 242 50 . 39 30 38 . . . . 86 2 49 . 8 . 10 17 . Cannon 44 | . . . . . . . . . 7 . . . 5 . . 3 2 24 2 . . . 1 . . Launcher 47 | . . . . . . . . . . 4 7 2 8 . 25 1 . . . . . . . . . Special 22 | . . . . . . . . . . . 16 6 . . . . . . . . . . . . . Kinetic 1083 | 26 132 14 355 . . 26 242 50 7 39 30 38 . . . . 76 . 41 . 5 . 2 . . Thermal 73 | . . . . . . . . . . . . . 5 . . 3 2 24 10 . 3 . 9 17 . Explosive 47 | . . . . . . . . . . 4 7 2 8 . 25 1 . . . . . . . . . Electromagnetic 12 | . . . . . . . . . . . . . . . . . 10 2 . . . . . . . Robot Hit Streak 45 | 6 12 2 45 . . 7 31 12 4 11 12 35 2 . 4 5 10 8 39 . 3 . 5 . . Robot Miss Streak 4 | 1 4 3 3 . . 1 4 3 2 2 2 2 . . . . 4 4 4 . 2 . . . . Penetration Max . | . . . . . . . . . . . . . . . . . . . . . . . . . . Secondary Targets 15 | . 1 . 5 . . . 3 . . . . . . . . . 3 . 3 . . . . . . Max Gunslinging Chain 1 | . 1 . 1 . . . 1 . . . . . . . . . 1 . 1 . . . . . . Shots Hit Robots 895 | 13 83 6 260 . 4 18 186 34 7 29 27 55 8 1 20 13 46 16 58 . 6 . 5 . . Core Hits 453 | 5 38 3 103 . . 9 79 14 2 23 19 29 15 . 41 22 19 8 20 . 2 . 1 1 . Critical Kills 7 | . . . . . . . 3 . . . . . . . 1 . 2 1 . . . . . . . Critical Parts Destroyed 19 | 1 2 . 1 . . . 2 . . 1 . 1 . . 4 2 5 . . . . . . . . Critical Strikes 35 | 1 2 . 1 . . . 5 . 1 1 . 2 . 1 7 3 7 1 2 . 1 . . . . Burn 2 | . . . . . . . . . . . . . . . . . . . 1 . 1 . . . . Meltdown 1 | . . . . . . . . . . . . . . . . . . 1 . . . . . . . Destroy 18 | 1 2 . 1 . . . 5 . . 1 . 1 . . . . 7 . . . . . . . . Blast 1 | . . . . . . . . . 1 . . . . . . . . . . . . . . . . Smash 7 | . . . . . . . . . . . . . . . 5 2 . . . . . . . . . Sever 1 | . . . . . . . . . . . . . . . . . . . 1 . . . . . . Impale 5 | . . . . . . . . . . . . 1 . 1 2 1 . . . . . . . . . Melee Attacks 189 | . . . . . 4 . . . 2 11 3 61 12 12 20 47 . . 14 . 3 . . . . Impact 39 | . . . . . . . . . . . . . . . 17 11 . . 8 . 3 . . . . Slashing 44 | . . . . . . . . . 2 11 3 22 . . . . . . 6 . . . . . . Piercing 102 | . . . . . . . . . . . . 39 12 12 3 36 . . . . . . . . . Sneak Attacks 16 | . . . . . 4 . . . . 1 . 6 . 1 . 4 . . . . . . . . . Combat Hostiles . | . . . . . . . . . . . . . . . . . . . . . . . . . . Follow-up Attacks 4 | . . . . . . . . . . . . 1 . . 3 . . . . . . . . . . Damage Inflicted 22891 | 141 728 84 4128 . . 275 2447 564 554 820 927 1797 1260 66 3376 1795 1334 457 1503 . 231 . 147 218 39 Guns 12361 | 141 728 84 4128 . . 275 2438 564 . 466 216 627 . . . . 1334 22 1032 . 159 . 147 . . Cannons 951 | . . . . . . . . . 481 . . . . . . . . 435 35 . . . . . . Explosions 5750 | . . . . . . . . . . 273 711 180 721 . 2576 1071 . . . . . . . 218 . Melee 3777 | . . . . . . . . . 73 81 . 990 539 66 800 724 . . 436 . 68 . . . . Ramming 52 | . . . . . . . 9 . . . . . . . . . . . . . 4 . . . 39 Kinetic 12268 | 141 728 84 4128 . . 275 2438 564 481 466 216 627 . . . . 1159 . 874 . 62 . 25 . . Thermal 1445 | . . . . . . . . . . . . . . . . 598 . 435 193 . 97 . 122 . . Explosive 5152 | . . . . . . . . . . 273 711 180 721 . 2576 473 . . . . . . . 218 . Electromagnetic 197 | . . . . . . . . . . . . . . . . . 175 22 . . . . . . . Impact 1334 | . . . . . . . . . . . . . . . 704 316 . . 246 . 68 . . . . Slashing 632 | . . . . . . . . . 73 81 . 288 . . . . . . 190 . . . . . . Piercing 1811 | . . . . . . . . . . . . 702 539 66 96 408 . . . . . . . . . Highest Corruption 17 | . . . 1 1 1 1 2 . . . . . . . . 6 13 . 13 13 17 17 . . . Average Corruption 3 | . . . 1 1 1 1 2 . . . . . . . . 6 7 . 12 13 6 17 . . . Corruption Purged . | . . . . . . . . . . . . . . . . . . . . . . . . . . Corruption Blocked 11 | . . . . . . . . 1 . 2 . 1 . . . 7 . . . . . . . . . Effects 127 | . . . 6 . 7 12 33 . . . . . . . . 6 31 . 23 2 5 2 . . . Message Errors 29 | . . . 2 . . 3 8 . . . . . . . . 1 8 . 5 1 1 . . . . Matter Fused 27 | . . . 1 . 2 1 9 . . . . . . . . . 4 . 8 1 . 1 . . . Heat Flow Errors 18 | . . . . . 3 1 6 . . . . . . . . 2 4 . 1 . 1 . . . . Energy Discharges 19 | . . . 2 . 2 3 3 . . . . . . . . 2 5 . 2 . . . . . . Parts Rejected 4 | . . . . . . . 1 . . . . . . . . 1 1 . 1 . . . . . . Data Loss (minor) 13 | . . . . . . 1 3 . . . . . . . . . 5 . 2 . 1 1 . . . Data Loss (major) 3 | . . . . . . 1 1 . . . . . . . . . . . 1 . . . . . . Misfires 5 | . . . 1 . . 1 1 . . . . . . . . . . . 2 . . . . . . Alerts 5 | . . . . . . 1 . . . . . . . . . . 2 . 1 . 1 . . . . Misdirections 1 | . . . . . . . . . . . . . . . . . . . . . 1 . . . . Weapon Failures 3 | . . . . . . . 1 . . . . . . . . . 2 . . . . . . . . Overload Shots 7 | . . . . . . . . . . . . . . . . . . . . . . . 3 4 . Effects 1 | . . . . . . . . . . . . . . . . . . . . . . . . 1 . Heat Surge 1 | . . . . . . . . . . . . . . . . . . . . . . . . 1 . Overflow Damage 1208 | . . . . . . . . . . 41 . 202 146 92 291 356 . 9 52 . 4 . . 15 . Projectiles 9 | . . . . . . . . . . . . . . . . . . 9 . . . . . . . Explosions 249 | . . . . . . . . . . . . . 49 . 32 153 . . . . . . . 15 . Melee 950 | . . . . . . . . . . 41 . 202 97 92 259 203 . . 52 . 4 . . . . Knockbacks . | . . . . . . . . . . . . . . . . . . . . . . . . . . Impact . | . . . . . . . . . . . . . . . . . . . . . . . . . . Kinetic . | . . . . . . . . . . . . . . . . . . . . . . . . . . Secondary . | . . . . . . . . . . . . . . . . . . . . . . . . . . Self-Inflicted Damage 296 | . . . . . . . . . . . . . . . . 225 . . . . 2 . . 50 19 Shots 4 | . . . . . . . . . . . . . . . . 3 . . . . . . . 1 . Rammed 11 | . . . . . . . . . . . . . . . . . . . . . 1 . 1 . 9 Targets Rammed 13 | . . . . . . . 2 . . . . . . . . . . . . . 1 . 1 . 9 Kicked 2 | . . . . . . . 2 . . . . . . . . . . . . . . . . . . Crushed . | . . . . . . . . . . . . . . . . . . . . . . . . . . Highest Temperature 444 | . 82 15 444 . 182 334 224 4 144 272 120 258 48 . 220 222 282 264 168 . 240 . 176 322 . Average Temperature 89 | . 19 13 98 . 73 185 78 4 67 51 49 103 12 . 81 96 112 83 33 . 83 . 86 111 . Received Heat Transfer 4478 | . 234 9 930 . . 459 729 9 . 114 32 1029 . . 75 105 120 36 201 . . . . 99 297 Effects 10 | . . . 4 . . 1 . . . . . . . . . 1 . 1 . . . . . 3 . Shutdowns 1 | . . . 1 . . . . . . . . . . . . . . . . . . . . . . Energy Bleed 2 | . . . . . . 1 . . . . . . . . . 1 . . . . . . . . . Interference 5 | . . . 1 . . . . . . . . . . . . . . 1 . . . . . 3 . Matter Decay 1 | . . . 1 . . . . . . . . . . . . . . . . . . . . . . Short Circuit 1 | . . . 1 . . . . . . . . . . . . . . . . . . . . . . Siege Activations 3 | . . . . . . . . . . . . 1 . . . . . 1 1 . . . . . . Total Turns 76 | . . . . . . . . . . . . 29 . . . . . 14 33 . . . . . . Longest Duration 33 | . . . . . . . . . . . . 29 . . . . . 14 33 . . . . . . Robots Corrupted 1 | . . . . . . . . . . . . . . . . . 1 . . . . . . . . Combat Hostiles 1 | . . . . . . . . . . . . . . . . . 1 . . . . . . . . Parts Fried 8 | . . . . . . . . . . . . . . . 2 3 2 . . . 1 . . . . Impact Corruptions 11 | . . . . . . . . . . . . . . . 6 3 . . 1 . 1 . . . . Robots Melted 1 | . . . . . . . . . . . . . . . . . . 1 . . . . . . . Combat Hostiles 1 | . . . . . . . . . . . . . . . . . . 1 . . . . . . . Parts Melted 3 | . . . . . . . . . . . . . . . . . . 3 . . . . . . . Heat Transferred 1642 | . . . . . . . . . . . . . . . . 300 . 650 346 . 185 . 161 . . Parts Sabotaged 2 | . . . . . . . . . . . . . . . . 2 . . . . . . . . . Parts Stolen . | . . . . . . . . . . . . . . . . . . . . . . . . . . Parts Stripped . | . . . . . . . . . . . . . . . . . . . . . . . . . . Power Chain Reactions . | . . . . . . . . . . . . . . . . . . . . . . . . . . Missiles Intercepted . | . . . . . . . . . . . . . . . . . . . . . . . . . . Alert | -11 -10 -10 -9 -9 -9 -8 -8 -7 -7 -7 -7 -6 -6 -6 -6 -5 -5 -4 -4 -4 -3 -3 -2 -2 -2 ------- Run | Scr Mat Min Mat Min Exi Min Mat Fac Was Fac Gar Fac Gar Fac Gar Fac Gar Fac Upp Upp Res Gar Res Gar Tes Peak Influence 1626 | 10 211 70 984 383 . 60 346 241 38 232 739 397 510 353 871 758 753 461 . . 60 57 117 267 1626 Initial 518 | . 6 6 . 383 . . . 156 38 . 103 377 94 267 247 457 518 384 . . 25 45 31 87 139 Average 277 | 3 90 26 466 383 . 18 119 105 19 77 545 274 306 301 564 504 646 407 . . 34 45 88 102 1604 Maximum Alert Level 5 | . 1 . 3 1 . . 1 1 . 1 3 1 2 1 3 3 3 2 . . . . . 1 5 Low Security (%) 50 | 100 99 100 18 . . 100 82 89 100 89 9 12 42 . . . . . . . 100 100 100 92 . Level 1 21 | . . . 20 100 . . 17 10 . 10 13 87 9 100 31 8 . 44 . . . . . 7 . Level 2 20 | . . . 45 . . . . . . . 45 . 48 . 33 79 80 55 . . . . . . . Level 3 7 | . . . 16 . . . . . . . 31 . . . 34 12 19 . . . . . . . . Level 4 . | . . . . . . . . . . . . . . . . . . . . . . . . . . Level 5 . | . . . . . . . . . . . . . . . . . . . . . . . . . . High Security . | . . . . . . . . . . . . . . . . . . . . . . . . . . Max Security . | . . . . . . . . . . . . . . . . . . . . . . . . . 99 Squads Dispatched 60 | . 2 1 8 . . . 6 4 . 3 . 14 . 2 . 5 . 2 . . 2 . 5 . 6 Investigation 24 | . 2 1 2 . . . 5 1 . 2 . 6 . 1 . 3 . 1 . . . . . . . Extermination 8 | . . . . . . . . 2 . 1 . 3 . . . . . . . . 1 . 1 . . Reinforcement 14 | . . . 3 . . . 1 1 . . . 2 . 1 . 1 . . . . 1 . 4 . . Assault 12 | . . . 3 . . . . . . . . 1 . . . 1 . 1 . . . . . . 6 Garrison 2 | . . . . . . . . . . . . 2 . . . . . . . . . . . . . Intercept . | . . . . . . . . . . . . . . . . . . . . . . . . . . Searches Triggered . | . . . . . . . . . . . . . . . . . . . . . . . . . . Construction Impeded . | . . . . . . . . . . . . . . . . . . . . . . . . . . Haulers Reinforced 2 | . . . . . . . . . . . . 1 . . . . . . . . . . 1 . . Active Scanning Responses . | . . . . . . . . . . . . . . . . . . . . . . . . . . Cargo Convoy Interrupts . | . . . . . . . . . . . . . . . . . . . . . . . . . . Stealth | -11 -10 -10 -9 -9 -9 -8 -8 -7 -7 -7 -7 -6 -6 -6 -6 -5 -5 -4 -4 -4 -3 -3 -2 -2 -2 --------- Run | Scr Mat Min Mat Min Exi Min Mat Fac Was Fac Gar Fac Gar Fac Gar Fac Gar Fac Upp Upp Res Gar Res Gar Tes Distress Signals 20 | . 4 . 5 . . . 3 1 . . . 1 . 2 . 2 . . . . 1 . 1 . . Communications Jammed . | . . . . . . . . . . . . . . . . . . . . . . . . . . Distress Signals . | . . . . . . . . . . . . . . . . . . . . . . . . . . Times Spotted 409 | . 17 4 72 9 . 3 57 12 . 13 13 36 4 4 6 37 14 12 15 2 15 9 12 16 27 Peak Tracking Total 19 | . 4 3 8 16 . 3 6 3 . 4 4 13 4 2 5 10 4 5 5 2 9 11 10 14 19 Tactical Retreats 24 | . . . 6 . . . 1 1 . . 1 . 1 . 2 5 2 . 2 . 1 . . 1 1 Traps | -11 -10 -10 -9 -9 -9 -8 -8 -7 -7 -7 -7 -6 -6 -6 -6 -5 -5 -4 -4 -4 -3 -3 -2 -2 -2 ------- Run | Scr Mat Min Mat Min Exi Min Mat Fac Was Fac Gar Fac Gar Fac Gar Fac Gar Fac Upp Upp Res Gar Res Gar Tes Traps Triggered 23 | . 1 . 4 . . . 2 1 . 2 1 2 3 . 1 . 3 . . . . . . 3 . Indirectly . | . . . . . . . . . . . . . . . . . . . . . . . . . . Trap Hack Attempts 50 | . . . 50 . . . . . . . . . . . . . . . . . . . . . . Triggered . | . . . . . . . . . . . . . . . . . . . . . . . . . . Disarmed 1 | . . . 1 . . . . . . . . . . . . . . . . . . . . . . Reprogrammed 10 | . 6 . 4 . . . . . . . . . . . . . . . . . . . . . . Reused 7 | . . . . . . . . . . 3 1 3 . . . . . . . . . . . . . Traps Reconfigurated 25 | . . . . . . . . 5 . 8 3 5 . . 4 . . . . . . . . . . Traps Extracted 4 | . . . 4 . . . . . . . . . . . . . . . . . . . . . . Installed . | . . . . . . . . . . . . . . . . . . . . . . . . . . Triggered 9 | . . . . . . . . . . 5 1 3 . . . . . . . . . . . . . Most Traps Carried 4 | . . . 4 4 4 4 4 4 4 4 4 4 . . . . . . . . . . . . . Exploded 3 | . . . . . . . 3 . . . . . . . . . . . . . . . . . . Machines | -11 -10 -10 -9 -9 -9 -8 -8 -7 -7 -7 -7 -6 -6 -6 -6 -5 -5 -4 -4 -4 -3 -3 -2 -2 -2 ---------- Run | Scr Mat Min Mat Min Exi Min Mat Fac Was Fac Gar Fac Gar Fac Gar Fac Gar Fac Upp Upp Res Gar Res Gar Tes Machines Disabled 25 | . 1 . 1 . . . . . . 2 4 1 4 . 2 7 1 . . . . . . 2 . Max in Single Turn 6 | . 1 . 1 . . . . . . 2 1 . 2 . 1 6 1 . . . . . . 2 . Garrison Access 1 | . . . . . . . . . . . . 1 . . . . . . . . . . . . . Garrison Relay 6 | . . . . . . . . . . . 4 . 1 . . . 1 . . . . . . . . Phase Generator 2 | . . . . . . . . . . . . . 1 . . . . . . . . . . 1 . Machines Sabotaged . | . . . . . . . . . . . . . . . . . . . . . . . . . . Garrisons Compromised . | . . . . . . . . . . . . . . . . . . . . . . . . . . Overloaded Fab Kills . | . . . . . . . . . . . . . . . . . . . . . . . . . . Hacking | -11 -10 -10 -9 -9 -9 -8 -8 -7 -7 -7 -7 -6 -6 -6 -6 -5 -5 -4 -4 -4 -3 -3 -2 -2 -2 --------- Run | Scr Mat Min Mat Min Exi Min Mat Fac Was Fac Gar Fac Gar Fac Gar Fac Gar Fac Upp Upp Res Gar Res Gar Tes Machines Accessed 85 | . 9 1 10 . 2 . 10 4 . 10 . 17 . 5 . 10 . 1 . . 2 . 4 . . Terminals 53 | . 7 1 8 . . . 8 2 . 6 . 8 . 3 . 5 . 1 . . 1 . 3 . . Fabricators 6 | . . . . . . . . . . 1 . 3 . . . 2 . . . . . . . . . Repair Stations 7 | . 1 . 1 . . . . 1 . . . 3 . . . 1 . . . . . . . . . Recycling Units 5 | . 1 . . . . . 2 . . 1 . . . . . 1 . . . . . . . . . Scanalyzers 5 | . . . 1 . . . . 1 . 1 . 1 . 1 . . . . . . . . . . . Garrison Access 7 | . . . . . . . . . . 1 . 2 . 1 . 1 . . . . 1 . 1 . . Total Hacks 262 | . 31 4 38 . 2 . 33 18 . 26 . 62 . 13 . 22 . 4 . . 2 . 7 . . Successful 151 | . 20 2 24 . 2 . 15 7 . 13 . 40 . 8 . 13 . 1 . . 2 . 4 . . Failed 110 | . 10 2 14 . . . 18 11 . 13 . 22 . 5 . 9 . 3 . . . . 3 . . Catastrophic 13 | . 1 . . . . . 3 1 . 1 . 2 . 2 . 1 . . . . . . 2 . . Database Lockouts 1 | . 1 . . . . . . . . . . . . . . . . . . . . . . . . Manual 150 | . 17 4 34 . 1 . 22 6 . 16 . 31 . 7 . 5 . 4 . . . . 3 . . Terminals 178 | . 25 4 34 . . . 25 9 . 15 . 33 . 10 . 12 . 4 . . 1 . 6 . . Fabricators 14 | . . . . . . . . . . 2 . 7 . . . 5 . . . . . . . . . Repair Stations 22 | . 2 . 2 . . . . 3 . . . 12 . . . 3 . . . . . . . . . Recycling Units 18 | . 4 . . . . . 8 . . 5 . . . . . 1 . . . . . . . . . Scanalyzers 20 | . . . 2 . . . . 6 . 3 . 7 . 2 . . . . . . . . . . . Garrison Access 8 | . . . . . . . . . . 1 . 3 . 1 . 1 . . . . 1 . 1 . . Terminal Hacks 44 | . 9 1 9 . 2 . 5 3 . 2 . 7 . 2 . 2 . . . . 1 . 1 . . Record 1 | . . . . . 1 . . . . . . . . . . . . . . . . . . . . Robot Analysis 8 | . 1 1 3 . . . 2 . . . . 1 . . . . . . . . . . . . . Prototype ID Bank 2 | . 2 . . . . . . . . . . . . . . . . . . . . . . . . Open DSF 2 | . . . . . . . . . . 1 . . . . . . . . . . 1 . . . . Level Access Points 1 | . . . 1 . . . . . . . . . . . . . . . . . . . . . . Branch Access Points 4 | . 1 . . . . . 1 1 . . . 1 . . . . . . . . . . . . . Terminal Index 8 | . 1 . 1 . . . 1 1 . 1 . 1 . 1 . 1 . . . . . . . . . Garrison Index 1 | . . . . . . . . . . . . 1 . . . . . . . . . . . . . Unreport Threat 1 | . . . . . . . 1 . . . . . . . . . . . . . . . . . . Locate Traps 8 | . 1 . 2 . . . . 1 . . . 2 . 1 . . . . . . . . 1 . . Reprogram Traps 2 | . 2 . . . . . . . . . . . . . . . . . . . . . . . . Recall Investigation 1 | . . . . . . . . . . . . 1 . . . . . . . . . . . . . Hauler Manifests 2 | . 1 . 1 . . . . . . . . . . . . . . . . . . . . . . Zone Layout 2 | . . . 1 . . . . . . . . . . . . 1 . . . . . . . . . EX-Prototype ID Bank 1 | . . . . . 1 . . . . . . . . . . . . . . . . . . . . Fabricator Hacks 10 | . . . . . . . . . . 2 . 4 . . . 4 . . . . . . . . . Load Schematic 5 | . . . . . . . . . . 1 . 2 . . . 2 . . . . . . . . . Build 5 | . . . . . . . . . . 1 . 2 . . . 2 . . . . . . . . . Repair Station Hacks 15 | . 2 . 2 . . . . . . . . 9 . . . 2 . . . . . . . . . Scan Component 8 | . 1 . 1 . . . . . . . . 5 . . . 1 . . . . . . . . . Repair 7 | . 1 . 1 . . . . . . . . 4 . . . 1 . . . . . . . . . Recycling Unit Hacks 6 | . 2 . . . . . 2 . . 1 . . . . . 1 . . . . . . . . . Retrieve Components 6 | . 2 . . . . . 2 . . 1 . . . . . 1 . . . . . . . . . Scanalyzer 15 | . . . 2 . . . . 2 . 2 . 7 . 2 . . . . . . . . . . . Insert Component 7 | . . . 1 . . . . 1 . 1 . 3 . 1 . . . . . . . . . . . Analyze 8 | . . . 1 . . . . 1 . 1 . 4 . 1 . . . . . . . . . . . Garrison Access Hacks 6 | . . . . . . . . . . 1 . 1 . 1 . 1 . . . . 1 . 1 . . Unlock Access 6 | . . . . . . . . . . 1 . 1 . 1 . 1 . . . . 1 . 1 . . Unauthorized Hacks 55 | . 7 1 11 . . . 8 2 . 5 . 12 . 3 . 3 . 1 . . . . 2 . . Terminals 46 | . 6 1 11 . . . 4 2 . 4 . 9 . 3 . 3 . 1 . . . . 2 . . Track 2 | . . . 2 . . . . . . . . . . . . . . . . . . . . . . Assimilate 5 | . . . . . . . . . . 1 . 2 . 1 . . . . . . . . 1 . . Botnet 32 | . 6 1 6 . . . 4 1 . 2 . 6 . 1 . 3 . 1 . . . . 1 . . Disrupt 1 | . . . 1 . . . . . . . . . . . . . . . . . . . . . . Operators 6 | . . . 2 . . . . 1 . 1 . 1 . 1 . . . . . . . . . . . Fabricators 1 | . . . . . . . . . . . . 1 . . . . . . . . . . . . . Haulers 1 | . . . . . . . . . . . . 1 . . . . . . . . . . . . . Repair Stations . | . . . . . . . . . . . . . . . . . . . . . . . . . . Recycling Units 6 | . 1 . . . . . 4 . . 1 . . . . . . . . . . . . . . . Reject 1 | . . . . . . . 1 . . . . . . . . . . . . . . . . . . Recyclers 2 | . . . . . . . 1 . . 1 . . . . . . . . . . . . . . . Mask 1 | . . . . . . . 1 . . . . . . . . . . . . . . . . . . Tunnel 2 | . 1 . . . . . 1 . . . . . . . . . . . . . . . . . . Scanalyzers . | . . . . . . . . . . . . . . . . . . . . . . . . . . Garrison Access 2 | . . . . . . . . . . . . 2 . . . . . . . . . . . . . Reprogram 1 | . . . . . . . . . . . . 1 . . . . . . . . . . . . . Watchers 1 | . . . . . . . . . . . . 1 . . . . . . . . . . . . . Data Cores Recovered . | . . . . . . . . . . . . . . . . . . . . . . . . . . Used . | . . . . . . . . . . . . . . . . . . . . . . . . . . Hacking Detections 69 | . 7 1 8 . . . 8 4 . 9 . 13 . 3 . 10 . 1 . . 1 . 4 . . Full Trace Events 18 | . 2 1 1 . . . 3 1 . 2 . 4 . . . 3 . 1 . . . . . . . Feedback Events 1 | . . . . . . . . . . 1 . . . . . . . . . . . . . . . Corruption 1 | . . . . . . . . . . 1 . . . . . . . . . . . . . . . Feedback Blocked . | . . . . . . . . . . . . . . . . . . . . . . . . . . Robot Schematics Acquired . | . . . . . . . . . . . . . . . . . . . . . . . . . . Robots Built . | . . . . . . . . . . . . . . . . . . . . . . . . . . Authchips . | . . . . . . . . . . . . . . . . . . . . . . . . . . Time . | . . . . . . . . . . . . . . . . . . . . . . . . . . Total Robot Build Rating . | . . . . . . . . . . . . . . . . . . . . . . . . . . Part Schematics Acquired 7 | . . . 1 . . . . 1 . 1 . 3 . 1 . . . . . . . . . . . Parts Built 7 | . . . . . . . . . . 2 . 3 . . . 2 . . . . . . . . . Authchips . | . . . . . . . . . . . . . . . . . . . . . . . . . . Time 378 | . . . . . . . . . . 35 . 201 . . . 142 . . . . . . . . . Total Part Build Rating 39 | . . . . . . . . . . 12 . 17 . . . 10 . . . . . . . . . Parts Repaired 7 | . 1 . 1 . . . . . . . . 4 . . . 1 . . . . . . . . . Time 336 | . 26 . 32 . . . . . . . . 259 . . . 19 . . . . . . . . . Parts Recycled . | . . . . . . . . . . . . . . . . . . . . . . . . . . Recycled Matter . | . . . . . . . . . . . . . . . . . . . . . . . . . . Retrieved Matter . | . . . . . . . . . . . . . . . . . . . . . . . . . . Retrieved Components 20 | . 1 . . . . . 17 . . 1 . . . . . 1 . . . . . . . . . Parts Scanalyzed 7 | . . . 1 . . . . 1 . 1 . 3 . 1 . . . . . . . . . . . Part Schematics Acquired 7 | . . . 1 . . . . 1 . 1 . 3 . 1 . . . . . . . . . . . Parts Damaged . | . . . . . . . . . . . . . . . . . . . . . . . . . . Bothacking | -11 -10 -10 -9 -9 -9 -8 -8 -7 -7 -7 -7 -6 -6 -6 -6 -5 -5 -4 -4 -4 -3 -3 -2 -2 -2 ------------ Run | Scr Mat Min Mat Min Exi Min Mat Fac Was Fac Gar Fac Gar Fac Gar Fac Gar Fac Upp Upp Res Gar Res Gar Tes Used RIF Installer 4 | . . . . . . . . . . . 1 . 1 . 1 . 1 . . . . . . . . Hotswap 1 | . . . . . . . . . . . . . . . . . 1 . . . . . . . . Threat Obfuscator 1 | . . . . . . . . . . . . . . . 1 . . . . . . . . . . Alert ID Control 1 | . . . . . . . . . . . . . 1 . . . . . . . . . . . . Robots Hacked 16 | . . . . . 4 . . . . . 8 4 . . . . . . . . . . . . . Non-combat 3 | . . . . . 3 . . . . . . . . . . . . . . . . . . . . Combat 13 | . . . . . 1 . . . . . 8 4 . . . . . . . . . . . . . Robot Hacks Applied 17 | . . . . . 4 . . . . . 8 5 . . . . . . . . . . . . . parse_system 5 | . . . . . 4 . . . . . . 1 . . . . . . . . . . . . . overload_power 1 | . . . . . . . . . . . . 1 . . . . . . . . . . . . . overwrite_iff 1 | . . . . . . . . . . . . 1 . . . . . . . . . . . . . streamctrl_high 1 | . . . . . . . . . . . . 1 . . . . . . . . . . . . . formatsys_high 9 | . . . . . . . . . . . 8 1 . . . . . . . . . . . . . Relay Couplers Released 27 | . . . . . . . . . . . 18 1 3 . . . 5 . . . . . . . . Machine Destruction 27 | . . . . . . . . . . . 18 1 3 . . . 5 . . . . . . . . Attached 16 | . . . . . . . . . . . 6 2 3 . . . 5 . . . . . . . . Fabnet Peak Effective % . | . . . . . . . . . . . . . . . . . . . . . . . . . . Robots Rewired 1 | . . . . . . . . . . . . . . . . . . . 1 . . . . . . Allies Hacked 2 | . . . . . . . . . . . . 2 . . . . . . . . . . . . . Hacks Repelled . | . . . . . . . . . . . . . . . . . . . . . . . . . . Allies | -11 -10 -10 -9 -9 -9 -8 -8 -7 -7 -7 -7 -6 -6 -6 -6 -5 -5 -4 -4 -4 -3 -3 -2 -2 -2 -------- Run | Scr Mat Min Mat Min Exi Min Mat Fac Was Fac Gar Fac Gar Fac Gar Fac Gar Fac Upp Upp Res Gar Res Gar Tes Total Allies 16 | . . . . . . . . . . 1 8 5 . . . . . . 1 . . . 1 . . Largest Group 6 | . . . . . . . . . . 1 6 6 . . . . . . 1 . . . 1 . . Highest-Rated Group 137 | . . . . . . . . . . 10 122 137 . . . . . . 47 . . . 26 . . Highest-Rated Ally 47 | . . . . . . . . . . 10 32 37 . . . . . . 47 . . . 26 . . Total Orders 12 | . . . . . . . . . . 2 6 . . 1 . 2 . . . . . . 1 . . STAY 5 | . . . . . . . . . . 1 3 . . . . . . . . . . . 1 . . FOLLOW 4 | . . . . . . . . . . 1 3 . . . . . . . . . . . . . . EXPLORE 3 | . . . . . . . . . . . . . . 1 . 2 . . . . . . . . . Ally Attacks 57 | . . . . . . . . . . . 29 21 . . . . . . 7 . . . . . . Total Damage 1064 | . . . . . . . . . . . 262 606 . . . . . . 196 . . . . . . Kills 12 | . . . . . . . . . . . 3 5 . . . . . . 4 . . . . . . Allies Corrupted . | . . . . . . . . . . . . . . . . . . . . . . . . . . Allies Melted . | . . . . . . . . . . . . . . . . . . . . . . . . . . Intel | -11 -10 -10 -9 -9 -9 -8 -8 -7 -7 -7 -7 -6 -6 -6 -6 -5 -5 -4 -4 -4 -3 -3 -2 -2 -2 ------- Run | Scr Mat Min Mat Min Exi Min Mat Fac Was Fac Gar Fac Gar Fac Gar Fac Gar Fac Upp Upp Res Gar Res Gar Tes Robot Analysis Total 8 | . 1 1 3 . . . 2 . . . . 1 . . . . . . . . . . . . . Derelict Logs Recovered 4 | . . 2 . . . . . . . . . . . . . . . . 2 . . . . . . Drone Launches 3 | . . . . . . . . . . . . . . 1 . 2 . . . . . . . . . Drone Recoveries . | . . . . . . . . . . . . . . . . . . . . . . . . . . Exploration | -11 -10 -10 -9 -9 -9 -8 -8 -7 -7 -7 -7 -6 -6 -6 -6 -5 -5 -4 -4 -4 -3 -3 -2 -2 -2 ------------- Run | Scr Mat Min Mat Min Exi Min Mat Fac Was Fac Gar Fac Gar Fac Gar Fac Gar Fac Upp Upp Res Gar Res Gar Tes Turns Passed 23491 | 79 831 976 3530 90 880 1113 2312 1093 776 1619 1361 2547 530 242 606 712 1105 393 1187 41 366 74 323 559 146 Spaces Moved 11971 | 41 534 402 1368 50 406 392 739 555 323 865 727 1144 274 271 549 765 503 226 525 26 318 120 354 342 152 Core 446 | 13 . . . . . . . . . . 1 18 233 . . 19 26 32 . . 14 . 1 34 55 Treads 5042 | . 103 395 1097 . . . 1 . 319 865 726 1123 . . . . . 128 285 . . . . . . Legs 2044 | . . . 271 50 406 392 395 . . . . . . . . . 132 . 240 26 132 . . . . Wheels 1465 | 28 431 7 . . . . 343 555 4 . . . . . . . . . . . . . . . 97 Hover 1814 | . . . . . . . . . . . . . 41 271 549 746 132 66 . . 9 . . . . Flight 1160 | . . . . . . . . . . . . 3 . . . . 213 . . . 163 120 353 308 . Fastest Speed 26 | 50 80 95 160 180 180 270 140 155 155 160 160 40 50 72 72 50 26 60 120 120 40 40 37 30 50 Average Speed 148 | 84 108 235 192 180 210 270 217 169 219 160 161 161 111 72 72 68 87 137 177 120 99 40 39 37 85 Slowest Speed 1000 | 100 160 240 270 180 270 270 450 170 305 160 1000 240 200 72 72 100 200 160 240 120 450 40 200 150 110 Overloaded Moves . | . . . . . . . . . . . . . . . . . . . . . . . . . . Propulsion Burnouts . | . . . . . . . . . . . . . . . . . . . . . . . . . . Robots Hopped 5 | . . . . . . . . . . . . 1 . . . . . . . . 3 . . 1 . Cave-ins Triggered 2 | . . . . . . . . . . . . . . . . 2 . . . . . . . . . Exploration Rate (%) 45 | 4 93 97 96 16 69 71 65 12 95 24 83 37 48 12 57 40 46 8 68 8 9 40 13 57 22 Regions Visited 25 Branch Regions 7 Pre-discovered Areas 6 | . 1 2 . . 1 . 1 . . . . . . . . . . . 1 . . . . . . Known Exits Taken 11 | . 1 . . . . 1 . . . 1 . 1 . 1 . 1 . 1 1 1 1 . 1 . . Unknown Exits Taken 6 | 1 . 1 1 1 1 . 1 . . . . . . . . . . . . . . . . . . Scrap Searched 8 | . . 1 . . . 3 . . . . . . . . . . . . 4 . . . . . . Spaces Dug 83 | . . . . . . . . . . 10 . 29 6 10 . 25 2 . . . . . 1 . . Terrain Destroyed 688 | . . . . . . . . . 1 46 46 46 160 10 159 117 5 11 2 . . . 3 82 . Melee 76 | . . . . . . . . . . 10 . 29 3 10 . 24 . . . . . . . . . Projectile 36 | . . . . . . . . . 1 . . . 3 . . 3 5 11 2 . . . 3 8 . AOE 576 | . . . . . . . . . . 36 46 17 154 . 159 90 . . . . . . . 74 . Terrain Rammed . | . . . . . . . . . . . . . . . . . . . . . . . . . . Walls Destroyed . | . . . . . . . . . . . . . . . . . . . . . . . . . . Machines Disabled . | . . . . . . . . . . . . . . . . . . . . . . . . . . Actions | -11 -10 -10 -9 -9 -9 -8 -8 -7 -7 -7 -7 -6 -6 -6 -6 -5 -5 -4 -4 -4 -3 -3 -2 -2 -2 --------- Run | Scr Mat Min Mat Min Exi Min Mat Fac Was Fac Gar Fac Gar Fac Gar Fac Gar Fac Upp Upp Res Gar Res Gar Tes Total 16251 | 62 675 424 1932 50 429 422 1231 662 386 1035 866 1713 462 299 697 869 1078 278 701 36 358 145 523 753 165 Wait 2495 | . 48 1 239 1 8 10 285 59 1 103 34 383 97 6 90 31 435 12 91 10 5 25 143 378 . Move 11943 | 40 533 401 1367 49 405 391 738 555 322 865 726 1142 273 271 548 765 502 225 524 25 312 119 354 339 152 Hop 5 | . . . . . . . . . . . . 1 . . . . . . . . 3 . . 1 . Pick Up 160 | 4 9 2 19 . 6 2 27 5 10 4 16 11 4 1 5 2 8 7 13 . 1 . 4 . . Fast Attach 148 | 5 4 1 12 . . . 11 3 12 4 5 15 9 4 . 10 25 13 5 . 4 . 4 . 2 Attach 75 | . 4 . 9 . . 4 9 2 3 . 4 12 5 . . 2 4 . 9 1 2 . 2 1 2 Detach 35 | . 1 . 2 . . . 5 . 4 . 3 4 1 2 . 2 2 3 . . 3 1 1 1 . Swap 123 | . 3 5 21 . 4 2 9 6 1 16 15 25 1 . 6 2 3 . 2 . 2 . . . . Drop 200 | . 7 7 27 . 2 . 23 7 24 8 14 30 2 3 6 4 16 . 1 . 16 . 3 . . Fire 711 | 13 66 7 186 . . 13 122 25 7 24 43 28 13 . 25 4 52 18 31 . 6 . 11 17 . Melee 185 | . . . . . 4 . . . 2 11 3 60 12 12 17 47 . . 14 . 3 . . . . Ram 11 | . . . . . . . . . . . . . . . . . . . . . 1 . 1 . 9 Kick 2 | . . . . . . . 2 . . . . . . . . . . . . . . . . . . Crush . | . . . . . . . . . . . . . . . . . . . . . . . . . . Escape Stasis 96 | . . . . . . . . . . . 2 2 45 . . . 31 . . . . . . 16 . Rewire 12 | . . . . . . . . . . . 1 . . . . . . . 11 . . . . . . Trap 50 | . . . 50 . . . . . . . . . . . . . . . . . . . . . . Miscellaneous . | . . . . . . . . . . . . . . . . . . . . . . . . . . Route ------- -11/Scrapyard -10/Materials (discovered 4 exits: *Mat x3 / *Min) -10/Mines (discovered 2 exits: *Mat x2) -9/Materials (discovered 5 exits: *Mat x3 / [*Min x2]) -9/Mines (discovered 2 exits: *Mat / *Exi) -9/Exiles -8/Mines -8/Materials -7/Factory (discovered 4 exits: *Fac / Sto / Low x2) -7/Waste -7/Factory (discovered 2 exits: *Sto / Gar) -7/Garrison (discovered 3 exits: *Fac x3) -6/Factory (discovered 4 exits: *Fac / *Low x2 / Gar) -6/Garrison -6/Factory -6/Garrison (discovered 3 exits: *Fac x3) -5/Factory -5/Garrison -4/Factory -4/Upper Caves -4/Upper Caves -3/Research -3/Garrison -2/Research -2/Garrison -2/Testing History --------- Turn | Location | Event 9 | -11/Scrapyard | Discovered new exit (range 15) 80 | -11/Scrapyard | Entered Materials 193 | -10/Materials | Repaired Seismic Detector 309 | -10/Materials | Build established: Mutant 322 | -10/Materials | Discovered new exit (range 15) 605 | -10/Materials | Discovered new exit (range 11) 606 | -10/Materials | Central database locked down 730 | -10/Materials | Discovered new exit (range 16) 800 | -10/Materials | Discovered new exit (range 16) 833 | -10/Materials | Identified exit to Mines 911 | -10/Materials | Entered Mines 916 | -10/Mines | Joined a pair of Derelicts in attacking an 0b10 outpost 1004 | -10/Mines | Learned location of Zion (-7) 1019 | -10/Mines | Discovered new exit (range 10) 1086 | -10/Mines | Received a Rocket Launcher from a helpful Derelict 1218 | -10/Mines | Build established: Scavenger-Mutant 1871 | -10/Mines | Discovered new exit (range 7) 1887 | -10/Mines | Entered Materials 1887 | -9/Materials | Evolved 2 slots: Utility x2 1954 | -9/Materials | Repaired Hvy. Assault Rifle 2263 | -9/Materials | Discovered new exit (range 4) 2565 | -9/Materials | Discovered new exit (range 7) 3251 | -9/Materials | Build established: Mutant 3732 | -9/Materials | Build established: Scavenger-Mutant 3739 | -9/Materials | Identified exit to Materials 3887 | -9/Materials | First assault squad dispatched 4311 | -9/Materials | Discovered new exit (range 8) 5008 | -9/Materials | Core integrity fell below 50% 5091 | -9/Materials | Build established: Mutant 5417 | -9/Materials | Entered Mines 5417 | -9/Mines | Discovered exit to Materials (range 10) 5483 | -9/Mines | Assembled infested the area 5498 | -9/Mines | Deemed a non-threat by the Exiles lab entrance 5498 | -9/Mines | Discovered new exit (range 5) 5507 | -9/Mines | Entered Exiles 5534 | -9/Exiles | Discovered new exit (range 15) 5558 | -9/Exiles | Met 8R-AWN 5593 | -9/Exiles | Met EX-HEX 5678 | -9/Exiles | Met EX-DEC 5744 | -9/Exiles | Met EX-BIN 5771 | -9/Exiles | Aligned with FarCom system 5772 | -9/Exiles | Given EX-Vault access code 5814 | -9/Exiles | Opened EX-Vault 5839 | -9/Exiles | Found Trap Reconfigurator 5881 | -9/Exiles | Warned to stay clear of 0b10 Research branches 6387 | -9/Exiles | Left Exiles lab with Trap Reconfigurator 6387 | -9/Exiles | Entered Mines 6402 | -8/Mines | Core integrity fell below 20% 6458 | -8/Mines | Lost 4 parts (1n2u1w) 6639 | -8/Mines | Build established: Trapper-Mutant 7333 | -8/Mines | Discovered exit to Materials (range 11) 7500 | -8/Mines | Entered Materials 7500 | -8/Materials | Evolved 2 slots: Utility x2 9116 | -8/Materials | Lost 4 parts (1p1n2u) 9286 | -8/Materials | Build established: Mutant 9526 | -8/Materials | Discovered new exit (range 16) 9812 | -8/Materials | Entered Factory 9812 | -7/Factory | Evolved 2 slots: Utility x2 10508 | -7/Factory | Build established: Scavenger-Mutant 10519 | -7/Factory | Discovered new exit (range 11) 10830 | -7/Factory | Identified exit to Storage 10830 | -7/Factory | Identified exit to Lower Caves 10905 | -7/Factory | Sucked down chute 10905 | -7/Factory | Entered Waste 10905 | -7/Waste | The area was eerily silent 11148 | -7/Waste | Found Prototype Launcher 11148 | -7/Waste | Identified Mni. Smartbomb Launcher 11303 | -7/Waste | Discovered new exit (range 12) 11623 | -7/Waste | Identified exit to Factory 11681 | -7/Waste | Entered Factory 11863 | -7/Factory | Build established: Mutant 12711 | -7/Factory | Discovered exit to Storage (range 11) 12968 | -7/Factory | Build established: Scavenger-Mutant 13214 | -7/Factory | Fabricated Nuclear Pulse Array (x2) 13300 | -7/Factory | Identified exit to Garrison 13300 | -7/Factory | Entered Garrison 13300 | -7/Garrison | Accompanied by 1 ally 13424 | -7/Garrison | Triggered checkpoint 13426 | -7/Garrison | Triggered checkpoint 13537 | -7/Garrison | Discovered new exit (range 12) 13553 | -7/Garrison | Identified exit to Factory 13562 | -7/Garrison | Installed Relay Interface Framework 13612 | -7/Garrison | Triggered checkpoint 13650 | -7/Garrison | Garrison Relay disabled 13792 | -7/Garrison | Triggered checkpoint 13810 | -7/Garrison | Garrison Relay disabled 13920 | -7/Garrison | Discovered exit to Factory (range 8) 13934 | -7/Garrison | Triggered checkpoint 13965 | -7/Garrison | Garrison Relay disabled 13996 | -7/Garrison | Build established: Bothacker-Mutant 14084 | -7/Garrison | Triggered checkpoint 14186 | -7/Garrison | Triggered checkpoint 14227 | -7/Garrison | Garrison Relay disabled 14308 | -7/Garrison | Triggered checkpoint 14635 | -7/Garrison | Discovered exit to Factory (range 14) 14661 | -7/Garrison | Entered Factory 14661 | -6/Factory | Accompanied by 6 allies 14661 | -6/Factory | Evolved 2 slots: Power x1, Propulsion x1 14993 | -6/Factory | Discovered new exit (range 8) 15055 | -6/Factory | Identified exit to Lower Caves 15182 | -6/Factory | Garrison activated, responded to threat 15633 | -6/Factory | Fabricated Nuclear Pulse Array? 15647 | -6/Factory | Discovered new exit (range 7) 15702 | -6/Factory | Found Unknown Device 15702 | -6/Factory | Identified Launcher Loader 16017 | -6/Factory | Repaired Broken Lance 16321 | -6/Factory | Repaired Hvy. Treads 16401 | -6/Factory | Repaired Broken Adv. Plasma Cannon 16488 | -6/Factory | Repaired Broken Adv. Trap Scanner 17161 | -6/Factory | Garrison activated, responded to threat 17193 | -6/Factory | Core integrity fell below 50% 17208 | -6/Factory | Fabricated Imp. Hacking Suite? 17208 | -6/Factory | Identified exit to Garrison 17208 | -6/Factory | Entered Garrison 17230 | -6/Garrison | Lost 14 parts (2p3n5u4w) 17236 | -6/Garrison | Triggered checkpoint 17279 | -6/Garrison | Garrison Relay disabled 17459 | -6/Garrison | Triggered checkpoint 17483 | -6/Garrison | Phase Generator disabled 17495 | -6/Garrison | Build established: Hacker-Mutant 17623 | -6/Garrison | Discovered new exit (range 12) 17652 | -6/Garrison | Expanded RIF knowledge: Alert ID Control 17738 | -6/Garrison | Entered Factory 17980 | -6/Factory | Identified exit to Garrison 17980 | -6/Factory | Entered Garrison 17985 | -6/Garrison | Build established: Scavenger-Mutant 18016 | -6/Garrison | Core integrity fell below 20% 18135 | -6/Garrison | Triggered checkpoint 18189 | -6/Garrison | Discovered new exit (range 12) 18236 | -6/Garrison | Triggered checkpoint 18297 | -6/Garrison | Discovered new exit (range 11) 18309 | -6/Garrison | Spotted B-75 Beast 18436 | -6/Garrison | Triggered checkpoint 18483 | -6/Garrison | Discovered new exit (range 14) 18550 | -6/Garrison | Expanded RIF knowledge: Threat Obfuscation 18586 | -6/Garrison | Entered Factory 18586 | -5/Factory | Evolved 2 slots: Propulsion x1, Utility x1 18723 | -5/Factory | Repaired Lrn. Tractor Beam 18752 | -5/Factory | Crushed by falling debris 18886 | -5/Factory | First assault squad dispatched 18909 | -5/Factory | Fabricated Imp. Hacking Suite? 18995 | -5/Factory | Fabricated Imp. Hacking Suite? 19171 | -5/Factory | Crushed by falling debris 19231 | -5/Factory | Destroyed 8 combat bots 19255 | -5/Factory | Lost 9 parts (1p3n4u1w) 19298 | -5/Factory | Identified exit to Garrison 19298 | -5/Factory | Entered Garrison 19301 | -5/Garrison | Expanded RIF knowledge: Hotswap 19324 | -5/Garrison | Triggered checkpoint 19326 | -5/Garrison | Lost 3 parts (1n1u1w) 19484 | -5/Garrison | Build established: Mutant 19490 | -5/Garrison | Core integrity fell below 50% 19519 | -5/Garrison | Triggered checkpoint 19533 | -5/Garrison | Garrison Relay disabled 20078 | -5/Garrison | Build established: Bothacker-Mutant 20162 | -5/Garrison | System corruption reached 10% 20254 | -5/Garrison | Triggered checkpoint 20347 | -5/Garrison | Spotted B-75 Beast 20395 | -5/Garrison | Discovered new exit (range 8) 20403 | -5/Garrison | Entered Factory 20403 | -4/Factory | Evolved 2 slots: Utility x2 20517 | -4/Factory | Lost 3 parts (1n1u1w) 20653 | -4/Factory | First assault squad dispatched 20729 | -4/Factory | Discovered new exit (range 3) 20730 | -4/Factory | Identified exit to Upper Caves 20796 | -4/Factory | Entered Upper Caves 20848 | -4/Upper Caves | Encountered a Warlord checkpoint 20851 | -4/Upper Caves | Lost 4 parts (1n1u2w) 21047 | -4/Upper Caves | Learned Research garrison access intel 21107 | -4/Upper Caves | Build established: Scavenger-Mutant 21262 | -4/Upper Caves | Learned location of Quarantine (-3) 21408 | -4/Upper Caves | Attracted the attention of an 0b10 outpost 21459 | -4/Upper Caves | System corruption reached 10% 21496 | -4/Upper Caves | Lost 13 parts (2p1n6u4w) 21967 | -4/Upper Caves | Discovered new exit (range 9) 21982 | -4/Upper Caves | Identified exit to Upper Caves 21983 | -4/Upper Caves | Entered another Upper Caves area 21985 | -4/Upper Caves | Discovered new exit (range 15) 22023 | -4/Upper Caves | Identified exit to Research 22024 | -4/Upper Caves | Entered Research 22024 | -3/Research | Evolved 2 slots: Utility x2 22025 | -3/Research | Loaded intel: 4 garrison access locations 22069 | -3/Research | Identified exit to DSF 22310 | -3/Research | System corruption reached 10% 22345 | -3/Research | Lost 7 parts (2p3n1u1w) 22390 | -3/Research | Identified exit to Garrison 22390 | -3/Research | Entered Garrison 22413 | -3/Garrison | Spotted B-86 Titan 22413 | -3/Garrison | Spotted B-86 Titan 22442 | -3/Garrison | Spotted B-86 Titan 22456 | -3/Garrison | Discovered new exit (range 19) 22464 | -3/Garrison | Entered Research 22464 | -2/Research | Evolved 2 slots: Propulsion x2 22579 | -2/Research | Build established: Mutant 22720 | -2/Research | Spotted B-90 Cyclops 22787 | -2/Research | Identified exit to Garrison 22787 | -2/Research | Entered Garrison 23302 | -2/Garrison | Phase Generator disabled 23316 | -2/Garrison | Spotted B-90 Cyclops 23322 | -2/Garrison | Triggered checkpoint 23333 | -2/Garrison | Core integrity fell below 50% 23341 | -2/Garrison | Discovered new exit (range 10) 23346 | -2/Garrison | Entered Testing 23347 | -2/Testing | Maximum security lockdown engaged 23360 | -2/Testing | Lost 5 parts (3n1u1w) 23377 | -2/Testing | Core integrity fell below 20% 23394 | -2/Testing | Found Prototype Protection 23394 | -2/Testing | Identified Centrium Heavy Armor Plating 23423 | -2/Testing | Spotted Striker 23424 | -2/Testing | Spotted Striker 23426 | -2/Testing | Spotted PH-AD4ZJVX22Z 23463 | -2/Testing | Spotted Striker 23463 | -2/Testing | Spotted Striker 23463 | -2/Testing | Spotted Executioner 23492 | -2/Testing | Destroyed by G-73 Enforcer with Phase Gun Last Messages --------------- 23463_ M-36 Artificer unfolds itself. 23463_ Slammed into G-73 Enforcer. 23468_ Slammed into B-74 Champion. 23468_ Penetrated by Slug. 23469_ Acquired 8 matter. 23469_ Slammed into Executioner. 23470_ Acquired 88 matter. 23470_ Slammed into I-47 Archangel. 23470_ Destabilizing: System interference. 23470_ Adv. Corruption Screen temporarily disabled. 23471_ Acquired 87 matter. 23472_ Penetrated by Slug. 23479_ Slug penetrates Wall. 23491_ Knocked back. 23492_ C-30 ARC bursts open, deploying its payload. 23492_ G-73 Enforcer unfolds itself. 23492_ B-74 Champion unfolds itself. 23492_ G-73 Enforcer unfolds itself. 23492_ E-15 Imp unfolds itself. 23492_ Centrium Wheel destroyed. Map ----- +----------------------------------------------------+ | ?????????# """ #????# #? #???????????????? | | ?????????# """ #????# ##?######???????????????? | | ?????????#! ] ?#????# #???????????????????????? | | ???????????######??????#"#???????????????????????? | | ???????????????????????# #???????????????????????? | | ???????????????????????#"#???????????????????????? | | ???????????????????????#m#???????????????????????? | | ???????????????????????#g#???????????????????????? | | ???????????????????????# #???????????????????????? | | ???????????????? ??????# ##??????????????????????? | | ??????????????###/#??###Kg#??????????????????????? | | ??????????????# ### #??????????????????????? | | ??????????????#! E #####??????????????????? | | ??????????????# g# ""#??????????????????? | | ??????????????+ """g""" K; "??????????????????? | | ??????????????# """ """b ; "??????????????????? | | ??????????????# """ """ # "#???????????????? | | ??????????????# #? ""#???????????????? | | ??????????????# """ """ #?"""""#???????????????? | | ??????????????# """%""" ########???????????????? | | ??????????????#^ """ """ ""#????????????????????? | | ??????????????# ""#????????????????????? | | ??????????????# """ """ G#????????????????????? | | ????????????### """ """% ""#????????????????????? | | ????????????#"" """ """% ""#?????##?#???????????? | | ????????????#"" @###????""""#???????????? | | ????????????#"T """ """% #?????""R""#???????????? | | ????????????#"" """ """ #???## " " ##??????????? | | ????????????#"" """ """ #?? ??????????? | | ????????????### ^ #?? ???????????? | | ??????????????# """ """ #? ????????????? | | ???????????#### """ """ #? """""?????????????? | | ???????????# """ """eg# """""?????????????? | | ???????????# b g# """"""" #?????????? | | ???????????# g C #?????????? | | ???????????# #C ]] #?????????? | | ???????????####+###### #C ]! #?????????? | | ?????????????? ????# #? #?????????? | | ?????????????? ????# #? #?????????? | | ????????????? ???# #?? #?????????? | | ?????????????"" ???# #??##/########?????????? | | ????????????""" ??# ???? #????????????????? | | ????????????"S ??# ##???? ????????????????? | | ???????????#""" ?##+###??????????????????????? | | ???????????# "" ] ?????????????????????????????? | | ????????????? #????????????????????????????? | | ??????????????#######????????????????????????????? | | ?????????????????????????????????????????????????? | | ?????????????????????????????????????????????????? | | ?????????????????????????????????????????????????? | +----------------------------------------------------+ Best States ------------- Heat Dissipation 71 Coolant Potential 80 Energy Generation 48 Energy Capacity 280 Matter Stores 300 Matter Capacity 300 Sight Range 20 Robot Scan Range 15 Terrain Scan Density 10 ECM Strength 1 Corruption Block 20 Armor Coverage 600 Core Shielding 20 Power Shielding 33 Weapon Shielding 33 Phase Shifting 10 Evasion (%) 64 Targeting Accuracy 16 Target Analysis 9 Recoil Reduction 3 Matter Filtering 30 Energy Filtering 50 Offensive Hacking 22 Defensive Hacking 20 Relay Coupler Types 3 Relay Coupler Value 154 Trap Extractor Capacity 4 Item Schematics ----------------- Hrd. Light Armor Plating | -9/Materials | Scanalyzed Imp. VTOL Module | -7/Factory | Scanalyzed Nuclear Pulse Array | -7/Factory | Scanalyzed Imp. Hacking Suite | -6/Factory | Scanalyzed Adv. Plasma Cannon | -6/Factory | Scanalyzed Mni. Smartbomb Launcher | -6/Factory | Scanalyzed Cmb. Airjet | -6/Factory | Scanalyzed Robot Schematics ------------------ None Fabricated ------------ Nuclear Pulse Array | x2 | -7/Factory Nuclear Pulse Array | x2 | -6/Factory Imp. Hacking Suite | x1 | -6/Factory Imp. Hacking Suite | x1 | -5/Factory Imp. Hacking Suite | x1 | -5/Factory Alien Tech Used ----------------- None Achievements -------------- None Challenges ------------ None Game ------ Seed NetworkBiocellBuckler Manual? 0 Play Time 03:11:38 Cumulative 488.8 hours Start 2022.05.04 @ 09:17:07 End 2022.05.04 @ 12:31:11 Sessions 3 Manual Loads 0 Difficulty Rogue Special Mode None Game No. 402 Rogue 402 Adventurer 0 Explorer 0 Win Type - Total 3 Types 2/0/0/1/0/0/0/0/0 Lore% 68 Gallery% 79 Achievement% 66 Wizard Run 0 Options --------- ASCII 0 Keyboard 1 Movement Numpad Keybinds 0 Fullscreen 1 Font 12/Terminus Map View 83x54 Tactical HUD 1 Map Filters NONE Filters NONE Steam 1 RUN: ffd619b2-4792-4545-b7f2-ed29d7e61f9c